[Event "Titled Tuesday Blitz August 24 2021"]
[White "Wagh Suyog"]
[Black "Ibadov, Dashgyn"]
[WhiteFideId "25071688"]
[BlackFideId "24107514"]
[WhiteElo "2219"]
[BlackElo "2102"]
[Result "1-0"]
[Round "04"]
[TimeControl "180+1"]
[Date "2021.08.24"]
[WhiteClock "0:01:22"]
[BlackClock "0:00:41"]

1. e4 {[%clk 0:03:00]}  c5 {[%clk 0:02:56]} 2. Nc3 {[%clk 0:02:58]}  Nc6 {[%clk 0:02:51]} 3. Nge2 {[%clk 0:02:57]}  Nf6 {[%clk 0:02:48]} 4. g3 {[%clk 0:02:57]}  e6 {[%clk 0:02:47]} 5. Bg2 {[%clk 0:02:57]}  d5 {[%clk 0:02:48]} 6. d3 {[%clk 0:02:57]}  Be7 {[%clk 0:02:45]} 7. O-O {[%clk 0:02:57]}  O-O {[%clk 0:02:46]} 8. h3 {[%clk 0:02:57]}  Rb8 {[%clk 0:02:45]} 9. f4 {[%clk 0:02:56]}  b5 {[%clk 0:02:45]} 10. g4 {[%clk 0:02:50]}  b4 {[%clk 0:02:45]} 11. Nb1 {[%clk 0:02:50]}  a5 {[%clk 0:02:42]} 12. Ng3 {[%clk 0:02:45]}  Ba6 {[%clk 0:02:41]} 13. e5 {[%clk 0:02:43]}  Nd7 {[%clk 0:02:40]} 14. Nd2 {[%clk 0:02:37]}  f6 {[%clk 0:02:34]} 15. exf6 {[%clk 0:02:34]}  Bxf6 {[%clk 0:02:34]} 16. Nf3 {[%clk 0:02:32]}  c4 {[%clk 0:02:26]} 17. Kh2 {[%clk 0:02:17]}  cxd3 {[%clk 0:02:21]} 18. cxd3 {[%clk 0:02:18]}  Nc5 {[%clk 0:02:20]} 19. Ne1 {[%clk 0:02:18]}  e5 {[%clk 0:01:41]} 20. f5 {[%clk 0:02:07]}  Kh8 {[%clk 0:01:30]} 21. Be3 {[%clk 0:02:05]}  d4 {[%clk 0:01:28]} 22. Bg1 {[%clk 0:02:02]}  Ne7 {[%clk 0:01:25]} 23. Rc1 {[%clk 0:02:01]}  Rc8 {[%clk 0:01:21]} 24. Rxc5 {[%clk 0:01:59]}  Rxc5 {[%clk 0:01:20]} 25. Ne4 {[%clk 0:02:00]}  Qc7 {[%clk 0:00:41]} 26. g5 {[%clk 0:01:53]}  Bxg5 {[%clk 0:00:41]} 27. Nxg5 {[%clk 0:01:53]}  e4+ {[%clk 0:00:41]} 28. Kh1 {[%clk 0:01:51]}  Nxf5 {[%clk 0:00:42]} 29. Bh2 {[%clk 0:01:20]}  Ng3+ {[%clk 0:00:42]} 30. Bxg3 {[%clk 0:01:21]}  Rxf1+ {[%clk 0:00:41]} 31. Bxf1 {[%clk 0:01:21]}  Qxg3 {[%clk 0:00:41]} 32. Qh5 {[%clk 0:01:22]} 1-0


[Site "https://www.chess.com"]

[Event "Titled Tuesday Blitz August 24 2021"]
[White "Wagner, Dennis"]
[Black "Sanchez Alvares, Kelvin Antonio"]
[WhiteFideId "24650684"]
[BlackFideId "3906680"]
[WhiteElo "2355"]
[BlackElo "2247"]
[Result "1-0"]
[Round "04"]
[TimeControl "180+1"]
[Date "2021.08.24"]
[WhiteClock "0:02:38"]
[BlackClock "0:02:23"]

1. d4 {[%clk 0:03:00]}  Nf6 {[%clk 0:02:59]} 2. Nf3 {[%clk 0:03:01]}  c5 {[%clk 0:02:58]} 3. e3 {[%clk 0:02:58]}  g6 {[%clk 0:02:57]} 4. Be2 {[%clk 0:02:56]}  Bg7 {[%clk 0:02:57]} 5. O-O {[%clk 0:02:56]}  O-O {[%clk 0:02:58]} 6. dxc5 {[%clk 0:02:56]}  Qa5 {[%clk 0:02:50]} 7. a3 {[%clk 0:02:40]}  Qxc5 {[%clk 0:02:49]} 8. b4 {[%clk 0:02:40]}  Qc7 {[%clk 0:02:48]} 9. Bb2 {[%clk 0:02:41]}  d6 {[%clk 0:02:47]} 10. Nbd2 {[%clk 0:02:41]}  Nbd7 {[%clk 0:02:43]} 11. c4 {[%clk 0:02:41]}  b6 {[%clk 0:02:43]} 12. Rc1 {[%clk 0:02:41]}  Bb7 {[%clk 0:02:43]} 13. Qb3 {[%clk 0:02:42]}  Rac8 {[%clk 0:02:42]} 14. h3 {[%clk 0:02:42]}  Qb8 {[%clk 0:02:40]} 15. Rfd1 {[%clk 0:02:42]}  Qa8 {[%clk 0:02:38]} 16. Bf1 {[%clk 0:02:41]}  Ne4 {[%clk 0:02:23]} 17. Bxg7 {[%clk 0:02:38]} 1-0


[Site "https://www.chess.com"]

[Event "Titled Tuesday Blitz August 24 2021"]
[White "Weetik, Vjacheslav"]
[Black "Fedoseev, Vladimir"]
[WhiteFideId "4153472"]
[BlackFideId "24130737"]
[WhiteElo "2469"]
[BlackElo "2756"]
[Result "0-1"]
[Round "04"]
[TimeControl "180+1"]
[Date "2021.08.24"]
[WhiteClock "0:00:06"]
[BlackClock "0:00:34"]

1. d4 {[%clk 0:03:00]}  g6 {[%clk 0:02:00]} 2. e4 {[%clk 0:03:00]}  Bg7 {[%clk 0:02:01]} 3. Nc3 {[%clk 0:03:01]}  d6 {[%clk 0:02:01]} 4. Nf3 {[%clk 0:02:59]}  a6 {[%clk 0:02:02]} 5. Be2 {[%clk 0:02:52]}  b5 {[%clk 0:02:00]} 6. O-O {[%clk 0:02:52]}  Bb7 {[%clk 0:02:00]} 7. Re1 {[%clk 0:02:37]}  Nd7 {[%clk 0:01:59]} 8. a4 {[%clk 0:02:32]}  b4 {[%clk 0:01:58]} 9. Nd5 {[%clk 0:02:32]}  c5 {[%clk 0:01:55]} 10. dxc5 {[%clk 0:01:59]}  Nxc5 {[%clk 0:01:49]} 11. Bc4 {[%clk 0:01:47]}  Nf6 {[%clk 0:01:29]} 12. Nxf6+ {[%clk 0:01:43]}  Bxf6 {[%clk 0:01:29]} 13. Bh6 {[%clk 0:01:42]}  Bxb2 {[%clk 0:01:21]} 14. Ng5 {[%clk 0:01:20]}  e6 {[%clk 0:01:19]} 15. Rb1 {[%clk 0:01:08]}  Bc3 {[%clk 0:01:18]} 16. Re3 {[%clk 0:01:08]}  Qe7 {[%clk 0:01:15]} 17. Qf3 {[%clk 0:00:40]}  f6 {[%clk 0:01:09]} 18. Rxc3 {[%clk 0:00:38]}  bxc3 {[%clk 0:01:07]} 19. Qxc3 {[%clk 0:00:38]}  Rc8 {[%clk 0:00:55]} 20. h4 {[%clk 0:00:14]}  Rg8 {[%clk 0:00:42]} 21. Nf3 {[%clk 0:00:09]}  Bxe4 {[%clk 0:00:39]} 22. Nd4 {[%clk 0:00:07]}  Kf7 {[%clk 0:00:37]} 23. Re1 {[%clk 0:00:07]}  d5 {[%clk 0:00:36]} 24. Bf1 {[%clk 0:00:06]}  Nd3 {[%clk 0:00:34]} 0-1


[Site "https://www.chess.com"]

[Event "Titled Tuesday Blitz August 24 2021"]
[White "Wieczorek, Oskar"]
[Black "Maghsoodloo, Parham"]
[WhiteFideId "1133950"]
[BlackFideId "12539929"]
[WhiteElo "2258"]
[BlackElo "2601"]
[Result "0-1"]
[Round "04"]
[TimeControl "180+1"]
[Date "2021.08.24"]
[WhiteClock "0:00:03"]
[BlackClock "0:00:04"]

1. e4 {[%clk 0:03:00]}  c5 {[%clk 0:02:56]} 2. Nf3 {[%clk 0:03:00]}  d6 {[%clk 0:02:55]} 3. d4 {[%clk 0:02:59]}  cxd4 {[%clk 0:02:56]} 4. Nxd4 {[%clk 0:03:00]}  Nf6 {[%clk 0:02:56]} 5. Nc3 {[%clk 0:03:01]}  a6 {[%clk 0:02:56]} 6. h4 {[%clk 0:03:02]}  e5 {[%clk 0:02:55]} 7. Nb3 {[%clk 0:03:01]}  Be6 {[%clk 0:02:56]} 8. f4 {[%clk 0:03:01]}  Nc6 {[%clk 0:02:55]} 9. f5 {[%clk 0:02:58]}  Bxb3 {[%clk 0:02:52]} 10. axb3 {[%clk 0:02:59]}  d5 {[%clk 0:02:53]} 11. Nxd5 {[%clk 0:02:40]}  Nxe4 {[%clk 0:02:47]} 12. Be3 {[%clk 0:02:07]}  Bc5 {[%clk 0:02:46]} 13. Qd3 {[%clk 0:01:42]}  Ng3 {[%clk 0:02:31]} 14. Bxc5 {[%clk 0:01:34]}  Nxh1 {[%clk 0:02:31]} 15. O-O-O {[%clk 0:01:24]}  Rc8 {[%clk 0:01:44]} 16. Bb6 {[%clk 0:00:54]}  Qxh4 {[%clk 0:01:30]} 17. Nf6+ {[%clk 0:00:35]}  gxf6 {[%clk 0:01:23]} 18. Qd7+ {[%clk 0:00:35]}  Kf8 {[%clk 0:01:23]} 19. Qxc8+ {[%clk 0:00:36]}  Kg7 {[%clk 0:01:24]} 20. Qxb7 {[%clk 0:00:37]}  Nd4 {[%clk 0:00:50]} 21. Bc4 {[%clk 0:00:35]}  Nf2 {[%clk 0:00:18]} 22. Qxf7+ {[%clk 0:00:34]}  Kh6 {[%clk 0:00:19]} 23. Rf1 {[%clk 0:00:25]}  Ne4 {[%clk 0:00:17]} 24. Bxd4 {[%clk 0:00:18]}  Qg5+ {[%clk 0:00:10]} 25. Kb1 {[%clk 0:00:15]}  Nd2+ {[%clk 0:00:10]} 26. Ka2 {[%clk 0:00:14]}  Nxf1 {[%clk 0:00:10]} 27. Bc5 {[%clk 0:00:10]}  Ng3 {[%clk 0:00:09]} 28. Bf8+ {[%clk 0:00:06]}  Rxf8 {[%clk 0:00:10]} 29. Qxf8+ {[%clk 0:00:07]}  Kh5 {[%clk 0:00:09]} 30. Qf7+ {[%clk 0:00:04]}  Kg4 {[%clk 0:00:09]} 31. Qxh7 {[%clk 0:00:05]}  e4 {[%clk 0:00:09]} 32. Qh3+ {[%clk 0:00:03]}  Kf4 {[%clk 0:00:09]} 33. Bxa6 {[%clk 0:00:03]}  e3 {[%clk 0:00:09]} 34. b4 {[%clk 0:00:03]}  Ke5 {[%clk 0:00:03]} 35. b5 {[%clk 0:00:03]}  Nxf5 {[%clk 0:00:03]} 36. Qf3 {[%clk 0:00:03]}  Nd4 {[%clk 0:00:02]} 37. Qd1 {[%clk 0:00:02]}  Qg8+ {[%clk 0:00:03]} 38. b3 {[%clk 0:00:02]}  e2 {[%clk 0:00:03]} 39. Qe1 {[%clk 0:00:02]}  Qg6 {[%clk 0:00:04]} 40. c3 {[%clk 0:00:02]}  Qc2+ {[%clk 0:00:04]} 41. Ka3 {[%clk 0:00:03]}  Qxb3# {[%clk 0:00:04]} 0-1


[Site "https://www.chess.com"]

[Event "Titled Tuesday Blitz August 24 2021"]
[White "Zarubitski, Viachaslau"]
[Black "Jakubowski, Krzysztof"]
[WhiteFideId "13509373"]
[BlackFideId "1112848"]
[WhiteElo "2315"]
[BlackElo "2414"]
[Result "0-1"]
[Round "04"]
[TimeControl "180+1"]
[Date "2021.08.24"]
[WhiteClock "0:00:26"]
[BlackClock "0:00:19"]

1. e4 {[%clk 0:02:59]}  c5 {[%clk 0:02:58]} 2. Nf3 {[%clk 0:02:57]}  d6 {[%clk 0:02:58]} 3. d4 {[%clk 0:02:58]}  cxd4 {[%clk 0:02:58]} 4. Nxd4 {[%clk 0:02:59]}  Nf6 {[%clk 0:02:58]} 5. Nc3 {[%clk 0:02:59]}  a6 {[%clk 0:02:58]} 6. g3 {[%clk 0:03:00]}  e6 {[%clk 0:02:54]} 7. Bg2 {[%clk 0:02:59]}  Bd7 {[%clk 0:02:53]} 8. O-O {[%clk 0:02:55]}  Nc6 {[%clk 0:02:53]} 9. Kh1 {[%clk 0:02:44]}  Be7 {[%clk 0:02:51]} 10. f4 {[%clk 0:02:43]}  Qc7 {[%clk 0:02:36]} 11. Be3 {[%clk 0:02:21]}  Rc8 {[%clk 0:02:23]} 12. Qe2 {[%clk 0:02:09]}  b5 {[%clk 0:02:13]} 13. Rae1 {[%clk 0:01:53]}  b4 {[%clk 0:01:39]} 14. Nd5 {[%clk 0:01:41]}  exd5 {[%clk 0:01:34]} 15. exd5 {[%clk 0:01:40]}  Nxd4 {[%clk 0:01:29]} 16. Bxd4 {[%clk 0:01:41]}  O-O {[%clk 0:01:29]} 17. Qxe7 {[%clk 0:01:28]}  Rfe8 {[%clk 0:01:25]} 18. Bxf6 {[%clk 0:01:27]}  Rxe7 {[%clk 0:01:23]} 19. Bxe7 {[%clk 0:01:28]}  Re8 {[%clk 0:01:08]} 20. Bh4 {[%clk 0:01:01]}  Rxe1 {[%clk 0:00:51]} 21. Rxe1 {[%clk 0:01:02]}  f6 {[%clk 0:00:51]} 22. Re2 {[%clk 0:00:53]}  Kf8 {[%clk 0:00:38]} 23. Bf3 {[%clk 0:00:47]}  Qc4 {[%clk 0:00:35]} 24. b3 {[%clk 0:00:42]}  Qd4 {[%clk 0:00:32]} 25. g4 {[%clk 0:00:39]}  Bb5 {[%clk 0:00:23]} 26. Re4 {[%clk 0:00:26]}  Qa1+ {[%clk 0:00:21]} 27. Kg2 {[%clk 0:00:26]}  Qf1+ {[%clk 0:00:20]} 28. Kg3 {[%clk 0:00:26]}  Qg1+ {[%clk 0:00:19]} 29. Bg2 {[%clk 0:00:26]}  Bf1 {[%clk 0:00:19]} 0-1


[Site "https://www.chess.com"]

[Event "Titled Tuesday Blitz August 24 2021"]
[White "Zhigalko, Sergei"]
[Black "Sonis, Francesco"]
[WhiteFideId "13502956"]
[BlackFideId "895733"]
[WhiteElo "2662"]
[BlackElo "2373"]
[Result "1-0"]
[Round "04"]
[TimeControl "180+1"]
[Date "2021.08.24"]
[WhiteClock "0:00:04"]
[BlackClock "0:00:14"]

1. e4 {[%clk 0:03:00]}  e5 {[%clk 0:02:57]} 2. Nf3 {[%clk 0:03:00]}  Nc6 {[%clk 0:02:56]} 3. Bc4 {[%clk 0:03:01]}  Bc5 {[%clk 0:02:55]} 4. b4 {[%clk 0:03:01]}  Bxb4 {[%clk 0:02:55]} 5. c3 {[%clk 0:03:01]}  Be7 {[%clk 0:02:56]} 6. d4 {[%clk 0:03:02]}  Na5 {[%clk 0:02:54]} 7. Bd3 {[%clk 0:03:02]}  d6 {[%clk 0:02:53]} 8. dxe5 {[%clk 0:03:02]}  dxe5 {[%clk 0:02:54]} 9. Nxe5 {[%clk 0:03:03]}  Nf6 {[%clk 0:02:53]} 10. O-O {[%clk 0:03:03]}  O-O {[%clk 0:02:52]} 11. Qc2 {[%clk 0:03:02]}  c5 {[%clk 0:02:52]} 12. Nd2 {[%clk 0:03:02]}  Qc7 {[%clk 0:02:51]} 13. f4 {[%clk 0:02:49]}  Rd8 {[%clk 0:02:48]} 14. Ndf3 {[%clk 0:02:15]}  c4 {[%clk 0:02:41]} 15. Be2 {[%clk 0:02:15]}  b5 {[%clk 0:02:40]} 16. Ng5 {[%clk 0:01:59]}  Bc5+ {[%clk 0:02:09]} 17. Kh1 {[%clk 0:01:57]}  Rf8 {[%clk 0:02:06]} 18. Nexf7 {[%clk 0:01:39]}  Rxf7 {[%clk 0:02:03]} 19. e5 {[%clk 0:01:39]}  Rf8 {[%clk 0:01:56]} 20. Bf3 {[%clk 0:01:29]}  Rb8 {[%clk 0:01:48]} 21. exf6 {[%clk 0:01:09]}  gxf6 {[%clk 0:01:49]} 22. Ne4 {[%clk 0:00:49]}  Be7 {[%clk 0:01:49]} 23. f5 {[%clk 0:00:47]}  Bxf5 {[%clk 0:01:46]} 24. Bh6 {[%clk 0:00:46]}  Rf7 {[%clk 0:01:42]} 25. Bh5 {[%clk 0:00:45]}  Bg6 {[%clk 0:01:42]} 26. Bxg6 {[%clk 0:00:45]}  hxg6 {[%clk 0:01:43]} 27. Ng5 {[%clk 0:00:46]}  f5 {[%clk 0:01:34]} 28. Nxf7 {[%clk 0:00:36]}  Kxf7 {[%clk 0:01:35]} 29. Rae1 {[%clk 0:00:25]}  Rh8 {[%clk 0:01:25]} 30. Bf4 {[%clk 0:00:25]}  Bd6 {[%clk 0:01:24]} 31. Bxd6 {[%clk 0:00:23]}  Qxd6 {[%clk 0:01:25]} 32. h3 {[%clk 0:00:24]}  Nc6 {[%clk 0:01:24]} 33. Qe2 {[%clk 0:00:18]}  a6 {[%clk 0:01:22]} 34. Rd1 {[%clk 0:00:18]}  Qe6 {[%clk 0:01:20]} 35. Qf3 {[%clk 0:00:13]}  Re8 {[%clk 0:01:14]} 36. Qg3 {[%clk 0:00:08]}  Ne5 {[%clk 0:01:00]} 37. Rfe1 {[%clk 0:00:07]}  Qf6 {[%clk 0:00:59]} 38. Qf2 {[%clk 0:00:02]}  Re7 {[%clk 0:00:55]} 39. Qd4 {[%clk 0:00:02]}  Nd3 {[%clk 0:00:51]} 40. Qd5+ {[%clk 0:00:02]}  Kg7 {[%clk 0:00:50]} 41. Rxe7+ {[%clk 0:00:03]}  Qxe7 {[%clk 0:00:50]} 42. Qd4+ {[%clk 0:00:03]}  Kh7 {[%clk 0:00:49]} 43. Kh2 {[%clk 0:00:03]}  Qc7+ {[%clk 0:00:48]} 44. Kg1 {[%clk 0:00:03]}  Qg3 {[%clk 0:00:47]} 45. Rf1 {[%clk 0:00:03]}  Qc7 {[%clk 0:00:40]} 46. Rf3 {[%clk 0:00:03]}  Qe7 {[%clk 0:00:40]} 47. Re3 {[%clk 0:00:03]}  Qg7 {[%clk 0:00:31]} 48. Qxg7+ {[%clk 0:00:03]}  Kxg7 {[%clk 0:00:32]} 49. Re6 {[%clk 0:00:03]}  a5 {[%clk 0:00:31]} 50. Rc6 {[%clk 0:00:03]}  Kf7 {[%clk 0:00:29]} 51. Kf1 {[%clk 0:00:03]}  Ke7 {[%clk 0:00:27]} 52. Rxg6 {[%clk 0:00:02]}  b4 {[%clk 0:00:26]} 53. cxb4 {[%clk 0:00:03]}  c3 {[%clk 0:00:25]} 54. Rc6 {[%clk 0:00:02]}  axb4 {[%clk 0:00:25]} 55. Rc4 {[%clk 0:00:01]}  Ke6 {[%clk 0:00:24]} 56. h4 {[%clk 0:00:02]}  Kd5 {[%clk 0:00:23]} 57. Rc8 {[%clk 0:00:02]}  Kd4 {[%clk 0:00:21]} 58. h5 {[%clk 0:00:02]}  Ke3 {[%clk 0:00:21]} 59. h6 {[%clk 0:00:01]}  Ne5 {[%clk 0:00:19]} 60. h7 {[%clk 0:00:02]}  Ng6 {[%clk 0:00:20]} 61. h8=Q {[%clk 0:00:02]}  Nxh8 {[%clk 0:00:20]} 62. Rxh8 {[%clk 0:00:03]}  Kd2 {[%clk 0:00:21]} 63. Rd8+ {[%clk 0:00:03]}  Kc1 {[%clk 0:00:21]} 64. Rb8 {[%clk 0:00:03]}  Kb2 {[%clk 0:00:11]} 65. Rxb4+ {[%clk 0:00:03]}  Kxa2 {[%clk 0:00:12]} 66. Ke2 {[%clk 0:00:03]}  Ka3 {[%clk 0:00:13]} 67. Rc4 {[%clk 0:00:03]}  Kb3 {[%clk 0:00:14]} 68. Kd3 {[%clk 0:00:04]}  c2 {[%clk 0:00:14]} 69. Rxc2 {[%clk 0:00:04]} 1-0


[Site "https://www.chess.com"]

[Event "Titled Tuesday Blitz August 24 2021"]
[White "Zierk, Steven"]
[Black "Vlassov, Nikolai"]
[WhiteFideId "2034255"]
[BlackFideId "4103360"]
[WhiteElo "2494"]
[BlackElo "2407"]
[Result "1-0"]
[Round "04"]
[TimeControl "180+1"]
[Date "2021.08.24"]
[WhiteClock "0:00:20"]
[BlackClock "0:00:22"]

1. e4 {[%clk 0:03:00]}  Nc6 {[%clk 0:02:59]} 2. d4 {[%clk 0:03:00]}  d5 {[%clk 0:02:59]} 3. Nc3 {[%clk 0:03:00]}  Nf6 {[%clk 0:02:57]} 4. e5 {[%clk 0:03:00]}  Nd7 {[%clk 0:02:57]} 5. Nxd5 {[%clk 0:03:00]}  Ndb8 {[%clk 0:02:57]} 6. Ne3 {[%clk 0:03:00]}  Qxd4 {[%clk 0:02:57]} 7. Qxd4 {[%clk 0:03:01]}  Nxd4 {[%clk 0:02:57]} 8. f4 {[%clk 0:03:01]}  c6 {[%clk 0:02:39]} 9. Bd3 {[%clk 0:02:57]}  g6 {[%clk 0:02:37]} 10. c3 {[%clk 0:02:51]}  Nf5 {[%clk 0:02:37]} 11. Nc2 {[%clk 0:02:46]}  Nd7 {[%clk 0:02:33]} 12. Nf3 {[%clk 0:02:46]}  Nc5 {[%clk 0:02:33]} 13. Be2 {[%clk 0:02:43]}  a5 {[%clk 0:02:32]} 14. g4 {[%clk 0:02:39]}  Ng7 {[%clk 0:02:31]} 15. Be3 {[%clk 0:02:34]}  Ne4 {[%clk 0:02:13]} 16. Bd3 {[%clk 0:02:30]}  f5 {[%clk 0:02:13]} 17. exf6 {[%clk 0:02:30]}  Nxf6 {[%clk 0:02:12]} 18. h3 {[%clk 0:02:27]}  Be6 {[%clk 0:02:03]} 19. Ncd4 {[%clk 0:02:18]}  Bd5 {[%clk 0:02:04]} 20. c4 {[%clk 0:02:13]}  e5 {[%clk 0:01:41]} 21. fxe5 {[%clk 0:01:59]}  Bb4+ {[%clk 0:01:39]} 22. Ke2 {[%clk 0:01:52]}  Bxf3+ {[%clk 0:01:35]} 23. Nxf3 {[%clk 0:01:52]}  Nd7 {[%clk 0:01:35]} 24. Rad1 {[%clk 0:01:46]}  Ne6 {[%clk 0:01:34]} 25. a3 {[%clk 0:01:28]}  Bc5 {[%clk 0:01:33]} 26. Bh6 {[%clk 0:01:28]}  Nd4+ {[%clk 0:01:26]} 27. Nxd4 {[%clk 0:01:27]}  Bxd4 {[%clk 0:01:26]} 28. Bf5 {[%clk 0:01:04]}  gxf5 {[%clk 0:01:05]} 29. Rxd4 {[%clk 0:01:03]}  fxg4 {[%clk 0:01:01]} 30. hxg4 {[%clk 0:00:52]}  O-O-O {[%clk 0:01:01]} 31. Bg7 {[%clk 0:00:52]}  Rhe8 {[%clk 0:00:56]} 32. Rxh7 {[%clk 0:00:51]}  Nxe5 {[%clk 0:00:56]} 33. Rxd8+ {[%clk 0:00:51]}  Kxd8 {[%clk 0:00:56]} 34. Bf6+ {[%clk 0:00:47]}  Kc8 {[%clk 0:00:54]} 35. Bxe5 {[%clk 0:00:45]}  Rxe5+ {[%clk 0:00:54]} 36. Kf3 {[%clk 0:00:46]}  Rc5 {[%clk 0:00:49]} 37. Rf7 {[%clk 0:00:39]}  Rxc4 {[%clk 0:00:46]} 38. g5 {[%clk 0:00:39]}  Kd8 {[%clk 0:00:36]} 39. g6 {[%clk 0:00:34]}  Ke8 {[%clk 0:00:36]} 40. Rf4 {[%clk 0:00:32]}  Rc1 {[%clk 0:00:24]} 41. g7 {[%clk 0:00:27]}  Rf1+ {[%clk 0:00:24]} 42. Ke3 {[%clk 0:00:27]}  Rxf4 {[%clk 0:00:24]} 43. g8=Q+ {[%clk 0:00:27]}  Rf8 {[%clk 0:00:25]} 44. Qe6+ {[%clk 0:00:22]}  Kd8 {[%clk 0:00:25]} 45. Qd6+ {[%clk 0:00:23]}  Ke8 {[%clk 0:00:25]} 46. Qb8+ {[%clk 0:00:23]}  Ke7 {[%clk 0:00:25]} 47. Qxb7+ {[%clk 0:00:23]}  Kd6 {[%clk 0:00:26]} 48. Qa7 {[%clk 0:00:22]}  Re8+ {[%clk 0:00:26]} 49. Kd3 {[%clk 0:00:22]}  Re5 {[%clk 0:00:26]} 50. Qb8+ {[%clk 0:00:22]}  Kd5 {[%clk 0:00:26]} 51. Qd8+ {[%clk 0:00:20]}  Ke6 {[%clk 0:00:27]} 52. Kc4 {[%clk 0:00:20]}  Rb5 {[%clk 0:00:26]} 53. b3 {[%clk 0:00:20]}  Ke5 {[%clk 0:00:25]} 54. Qc7+ {[%clk 0:00:20]}  Kf5 {[%clk 0:00:24]} 55. Qxc6 {[%clk 0:00:20]}  Re5 {[%clk 0:00:24]} 56. Qd7+ {[%clk 0:00:19]}  Ke4 {[%clk 0:00:24]} 57. b4 {[%clk 0:00:19]}  axb4 {[%clk 0:00:24]} 58. axb4 {[%clk 0:00:20]}  Rh5 {[%clk 0:00:22]} 59. Qg4+ {[%clk 0:00:20]} 1-0


[Site "https://www.chess.com"]